Workbook

Sheet 2021年县一般公共预算收入
A1: 2021年渑池县一般公共预算收入执行情况表
G2: 单位：万元
A3: 收 入 项 目 | B3: 预算数 | C3: 完成数 | D3: 上年完成数 | E3: 其中： | G3: 为预算% | H3: 备注
E4: 县本级 | F4: 乡镇级
A5: 合 计 | B5: =B6+B21 -> 283600 | C5: =C6+C21 -> 283889 | D5: =D6+D21 -> 270099 | E5: 159669 | F5: 124220 | G5: =SUM(C5/B5*100) -> 100.1
A6: 一、税收收入 | B6: =SUM(B7:B20) -> 179870 | C6: =SUM(C7:C20) -> 166674 | D6: =SUM(D7:D20) -> 171585 | E6: 99422 | F6: 67252 | G6: 92.7 | J6: =C6-D6 -> -4911 | K6: =C6/D6*100-100 -> -2.862138299
A7: 增值税 | B7: 58100 | C7: 73030 | D7: 54555 | E7: 73030 | F7: =C7-E7 -> 0 | G7: 125.7 | J7: =C7-D7 -> 18475 | K7: =C7/D7*100-100 -> 33.86490697
A8: 企业所得税 | B8: 13620 | C8: 14779 | D8: 12970 | E8: 11239 | F8: =C8-E8 -> 3540 | G8: 108.5 | J8: =C8-D8 -> 1809 | K8: 13.94757132
A9: 个人所得税 | B9: 1460 | C9: 1032 | D9: 1401 | E9: 806 | F9: 226 | G9: 70.7 | J9: -369 | K9: -26.33832976
A10: 资源税 | B10: 27700 | C10: 36389 | D10: 26338 | E10: 865 | F10: 35524 | G10: 131.4 | J10: 10051 | K10: 38.16159162
A11: 城市维护建设税 | B11: 6000 | C11: 7467 | D11: 5659 | E11: 7467 | F11: 0 | G11: 124.5 | J11: 1808 | K11: 31.94910762
A12: 房产税 | B12: 2000 | C12: 2477 | D12: 1881 | E12: 19 | F12: 2458 | G12: 124 | J12: 596 | K12: 31.68527379
A13: 印花税 | B13: 1420 | C13: 1551 | D13: 1357 | E13: 58 | F13: 1493 | G13: 109.2 | J13: 194 | K13: 14.29624171
A14: 城镇土地使用税 | B14: 3800 | C14: 4432 | D14: 3690 | E14: 45 | F14: 4387 | G14: 116.6 | J14: 742 | K14: 20.10840108
A15: 土地增值税 | B15: 2600 | C15: 2016 | D15: 2473 | E15: 2016 | F15: 0 | G15: 77.5 | J15: -457 | K15: -18.47957946
A16: 车船税 | B16: 1700 | C16: 1381 | D16: 1608 | E16: 4 | F16: 1377 | G16: 81.2 | J16: -227 | K16: -14.11691542
A17: 耕地占用税 | B17: 4300 | C17: 3609 | D17: 4126 | E17: 971 | F17: 2638 | G17: 83.9 | J17: -517 | K17: -12.53029569
A18: 契税 | B18: 53900 | C18: 15092 | D18: 52424 | E18: 2036 | F18: 13056 | G18: 28.0 | J18: -37332 | K18: -71.21165878
A19: 烟叶税 | B19: 2420 | C19: 2553 | D19: 2304 | F19: 2553 | G19: 105.5 | J19: 249 | K19: 10.80729167
A20: 环境保护税 | B20: 850 | C20: 866 | D20: 799 | E20: 866 | F20: 0 | G20: 101.9 | J20: 67 | K20: 8.385481852
A21: 二、非税收入 | B21: =SUM(B22:B28) -> 103730 | C21: =SUM(C22:C28) -> 117215 | D21: =SUM(D22:D28) -> 98514 | E21: 60247 | F21: 56968 | G21: 113.0
A22: 专项收入 | B22: 7900 | C22: 8334 | D22: 7209 | E22: 8334 | F22: 0 | G22: 105.5
A23: 行政事业性收费收入 | B23: 4600 | C23: 7127 | D23: 4447 | E23: 6860 | F23: 267 | G23: 154.9
A24: 罚没收入 | B24: 11700 | C24: 3707 | D24: 11683 | E24: 3679 | F24: 28 | G24: 31.7
A25: 国有资本经营收入 | B25: 67000 | C25: 56673 | D25: 63662 | F25: 56673 | G25: 84.6
A26: 国有资源有偿使用收入 | B26: 8300 | C26: 41120 | D26: 7819 | E26: 41120 | F26: 0 | G26: 495.4
A27: 政府住房基金收入 | B27: 430 | D27: 383 | F27: 0 | G27: 0.0
A28: 其他收入 | B28: 3800 | C28: 254 | D28: 3311 | E28: 254 | F28: 0

Sheet 2021财力收入
A1: 2021年渑池县财力收入表
B2: 单位：万元
A3: 项 目 名 称 | B3: 金 额 | C3: 备 注
A4: 一、 收入总计 | B4: =B5+B6+B16+B17+B18 -> 432416
A5: （一）本年收入 | B5: ='2021年县一般公共预算收入'!C5 -> 283889
A6: （二）上级补助收入 | B6: 115575
A7: 1、返还性收入 | B7: =B8+B9+B10+B11+B12 -> -5467
A8: 增值税和消费税税收返还 | B8: 4219
A9: 新增值税返还（上解） | B9: -15609
A10: 消费税返还基数 | B10: 113
A11: 所得税基数返还额 | B11: 5493
A12: 成品油价格和税费改革返还基数 | B12: 317
A13: 2、基数性补助收入 | B13: 16186
A14: 3、一般性转移支付收入 | B14: 77283
A15: 4、专项转移支付收入 | B15: 27573
A16: （三）一般债券收入(新增) | B16: 7300
A17: （四）预算稳定调节基金 | B17: 5566
A18: （五）调入资金 | B18: 20086
A19: 二、上解支出总计 | B19: =SUM(B20:B22) -> 44572
A20: （一）出口退税专项上解 | B20: 49
A21: （二）专项上解 | B21: 26394
A22: （三）其他上解 | B22: 18129
A23: 三、债券还本支出 | B23: 519
A24: 四、安排预算稳定调节基金 | B24: 289
A25: 五、财力总计 | B25: =SUM(B4-B19-B23-B24) -> 387036

Sheet 2021年渑池县一般公共预算支出执行表
A1: 2021年渑池县一般公共预算支出执行情况表
A3: 项目名称 | B3: 预算数 | C3: 完成数 | D3: 为预算%
A5: 合 计 | B5: =SUM(B6:B25) -> 315715 | C5: 373841 | D5: =C5/B5*100 -> 118.4 | J5: 单位：万元
A6: 一、一般公共服务支出 | B6: 38113 | C6: 40154 | D6: =C6/B6*100 -> 105.4 | G6: 为年 预算% | H6: 乡(镇)级 预算数 | I6: 本月止 累计完成 | J6: 为年 预算%
A7: 二、公共安全支出 | B7: 13500 | C7: 10998 | D7: 81.5 | G7: 99.62485802 | H7: 155339 | I7: 154534 | J7: 99.48177856
A8: 三、教育支出 | B8: 66000 | C8: 74251 | D8: 112.5 | G8: 179.1044776 | H8: 40860 | I8: 40754 | J8: 99.74057758
A9: 四、科学技术支出 | B9: 9980 | C9: 9879 | D9: 99.0 | G9: 100.2449479 | H9: 2835 | I9: 2813 | J9: 99.22398589
A10: 五、文化旅游体育与传媒支出 | B10: 5700 | C10: 7883 | D10: 138.3 | G10: 100.8598154 | H10: 42500 | I10: 42227 | J10: 99.35764706
A11: 六、社会保障和就业支出 | B11: 29069 | C11: 41667 | D11: 143.3 | G11: 100.0844544 | H11: 31580 | I11: 31552 | J11: 99.91133629
A12: 七、卫生健康支出 | B12: 30975 | C12: 35996 | D12: 116.2 | G12: 101.9255095 | H12: 2764 | I12: 2627 | J12: 95.04341534
A13: 八、节能环保支出 | B13: 11610 | C13: 17513 | D13: 150.8 | G13: 100
A14: 九、城乡社区支出 | B14: 27732 | C14: 50454 | D14: 181.9 | G14: 99.31835395 | H14: 18062 | I14: 18042 | J14: 99.88927029
A15: 十、农林水支出 | B15: 44892 | C15: 50891 | D15: 113.4 | G15: 117.8300095 | H15: 10856 | I15: 9354 | J15: 86.16433309
A16: 十一、交通运输支出 | B16: 7133 | C16: 9199 | D16: 129.0 | G16: 3.067484663 | H16: 976 | I16: 660 | J16: 67.62295082
A17: 十二、资源勘探工业信息等支出 | B17: 1327 | C17: 1326 | D17: 99.9 | G17: 166.5868673 | H17: 876 | I17: 874 | J17: 99.7716895
A18: 十三、商业服务业等支出 | B18: 1122 | C18: 1307 | D18: 116.5 | G18: 106.3314711 | H18: 2067 | I18: 1965 | J18: 95.06531205
A19: 十四、自然资源海洋气象等支出 | B19: 4594 | C19: 5887 | D19: 128.1 | G19: 100
A20: 十五、住房保障支出 | B20: 10360 | C20: 7105 | D20: 68.6 | G20: 108.3810303 | H20: 2837 | I20: 1607 | J20: 56.64434262
A21: 十六、粮油物资储备支出 | B21: 1450 | C21: 1802 | D21: 124.3 | G21: 100.0892937 | H21: 370 | I21: 360 | J21: 97.2972973
A22: 十七、灾害防治及应急管理支出 | B22: 5000 | C22: 3137 | D22: 62.7 | G22: 100.2102475 | H22: 2071 | I22: 1971 | J22: 95.17141478
A23: 十八、预备费 | B23: 3000 | D23: 0.0 | G23: 112.1162505 | H23: 785 | I23: 104 | J23: 13.24840764
A24: 十九、债务付息支出 | B24: 3878 | C24: 3816 | D24: 98.4 | G24: 105.035136 | H24: 34582 | I24: 33702 | J24: 97.45532358
A25: 二十、其它支出 | B25: 280 | C25: 576 | D25: 205.7 | G25: 106.0134418 | H25: 11841 | I25: 11671 | J25: 98.56431045
G26: 102.9617144 | H26: 2642 | I26: 2519 | J26: 95.34443603
G27: 106.5819337 | H27: 4415 | I27: 4125 | J27: 93.43148358
G28: 100.9279476 | H28: 12306 | I28: 12289 | J28: 99.86185601
G29: 100
G30: 99.92464205
G31: 100
G32: 100
G33: 100
G34: 101.5391719 | H34: 2009 | I34: 1909 | J34: 95.0223992
G35: 100
G36: 100
I37: 0

Sheet 2021年县本级一般公共支出执行表
A1: 2021年县本级一般公共预算支出执行情况表
D2: 单位：万元
A3: 项目名称 | B3: 预算数 | C3: 完成数 | D3: 为预算%
A4: 合 计 | B4: =SUM(B5:B24) -> 241858 | C4: =SUM(C5:C24) -> 271138 | D4: =SUM(C4/B4*100) -> 112.1 | J4: 单位：万元
A5: 一、一般公共服务支出 | B5: 18000 | C5: 23807 | D5: 132.3 | G5: 为年 预算% | H5: 乡(镇)级 预算数 | I5: 本月止 累计完成 | J5: 为年 预算%
A6: 二、公共安全支出 | B6: 13500 | C6: 10990 | D6: 81.4 | G6: 99.62485802 | H6: 155339 | I6: 154534 | J6: 99.48177856
A7: 三、教育支出 | B7: 66000 | C7: 50756 | D7: 76.9 | G7: 179.1044776 | H7: 40860 | I7: 40754 | J7: 99.74057758
A8: 四、科学技术支出 | B8: 7950 | C8: 8528 | D8: 107.3 | G8: 100.2449479 | H8: 2835 | I8: 2813 | J8: 99.22398589
A9: 五、文化旅游体育与传媒支出 | B9: 5700 | C9: 5917 | D9: 103.8 | G9: 100.8598154 | H9: 42500 | I9: 42227 | J9: 99.35764706
A10: 六、社会保障和就业支出 | B10: 25200 | C10: 34864 | D10: 138.3 | G10: 100.0844544 | H10: 31580 | I10: 31552 | J10: 99.91133629
A11: 七、卫生健康支出 | B11: 25800 | C11: 35235 | D11: 136.6 | G11: 101.9255095 | H11: 2764 | I11: 2627 | J11: 95.04341534
A12: 八、节能环保支出 | B12: 6100 | C12: 9518 | D12: 156.0 | G12: 100
A13: 九、城乡社区支出 | B13: 13900 | C13: 29829 | D13: 214.6 | G13: 99.31835395 | H13: 18062 | I13: 18042 | J13: 99.88927029
A14: 十、农林水支出 | B14: 24000 | C14: 30046 | D14: 125.2 | G14: 117.8300095 | H14: 10856 | I14: 9354 | J14: 86.16433309
A15: 十一、交通运输支出 | B15: 6100 | C15: 8064 | D15: 132.2 | G15: 3.067484663 | H15: 976 | I15: 660 | J15: 67.62295082
A16: 十二、资源勘探工业信息等支出 | B16: 1200 | C16: 1233 | D16: 103 | G16: 166.5868673 | H16: 876 | I16: 874 | J16: 99.7716895
A17: 十三、商业服务业等支出 | B17: 580 | C17: 1137 | D17: 196.0 | G17: 106.3314711 | H17: 2067 | I17: 1965 | J17: 95.06531205
A18: 十四、自然资源海洋气象等支出 | B18: 4000 | C18: 5887 | D18: 147.2 | G18: 100
A19: 十五、住房保障支出 | B19: 10360 | C19: 6029 | D19: 58.2 | G19: 108.3810303 | H19: 2837 | I19: 1607 | J19: 56.64434262
A20: 十六、粮油物资储备支出 | B20: 1450 | C20: 1802 | D20: 124.3 | G20: 100.0892937 | H20: 370 | I20: 360 | J20: 97.2972973
A21: 十七、灾害防治及应急管理支出 | B21: 5000 | C21: 3104 | D21: 62.1 | G21: 100.2102475 | H21: 2071 | I21: 1971 | J21: 95.17141478
A22: 十八、预备费 | B22: 3000 | D22: 0 | G22: 112.1162505 | H22: 785 | I22: 104 | J22: 13.24840764
A23: 十九、债务付息支出 | B23: 3878 | C23: 3816 | D23: 98 | G23: 105.035136 | H23: 34582 | I23: 33702 | J23: 97.45532358
A24: 二十、其它支出 | B24: 140 | C24: 576 | D24: 411.4 | G24: 106.0134418 | H24: 11841 | I24: 11671 | J24: 98.56431045
G25: 102.9617144 | H25: 2642 | I25: 2519 | J25: 95.34443603
G26: 106.5819337 | H26: 4415 | I26: 4125 | J26: 93.43148358
G27: 100.9279476 | H27: 12306 | I27: 12289 | J27: 99.86185601
G28: 100
G29: 99.92464205
G30: 100
G31: 100
G32: 100
G33: 101.5391719 | H33: 2009 | I33: 1909 | J33: 95.0223992
G34: 100
G35: 100
I36: 0

Sheet 基金收入2021年执行情况
A1: 2021年渑池县政府性基金收入执行情况表
D2: 单位:万元
A3: 科 目 名 称 | B3: 预算数 | C3: 完成数 | D3: 为预算% | E3: 备注 | F3: 较上年 增减%
A4: 合 计 | B4: =SUM(B5:B9) -> 37880 | C4: =SUM(C5:C9) -> 80409 | D4: =SUM(C4/B4*100) -> 212.3 | F4: -2.3
A5: 一、国有土地使用权出让收入 | B5: 36000 | C5: 77041 | D5: 214.0 | F5: 54.0
A6: 二、国有土地收益基金收入 | B6: 465 | C6: 1449 | D6: 311.6
A7: 三、农业土地开发资金收入 | B7: 95 | C7: 351 | D7: 369.5
A8: 四、城市基础设施配套费收入 | B8: 800 | C8: 964 | D8: 120.5 | F8: -93.5
A9: 五、污水处理费 | B9: 520 | C9: 604 | D9: 116.2

Sheet 基金收支结余表
A1: 2021年渑池县政府性基金收支执行情况表
G2: 单位:万元
A3: 科目名称 | B3: 收入总计 | C3: 其 中： | F3: 当 年 支 出 | G3: 调 出 资 金 | H3: 结 转 下 年
C4: 上 年 结 余 | D4: 完成数 | E4: 上 级 下 达
A5: 合 计 | B5: =SUM(C5:E5) -> 207634 | C5: =SUM(C6:C17) -> 3420 | D5: =SUM(D6:D17) -> 80409 | E5: =SUM(E6:E17) -> 123805 | F5: =SUM(F6:F17) -> 130170 | G5: =SUM(G6:G17) -> 18924 | H5: =B5-F5-G5 -> 58540
A6: 一、国有土地使用权出让收入 | B6: =SUM(C6:E6) -> 78530 | C6: 28 | D6: 77041 | E6: 1461 | F6: 47400 | H6: =B6-F6-G6 -> 31130
A7: 二、国有土地收益基金收入 | B7: 1572 | C7: 123 | D7: 1449 | H7: =B7-F7-G7 -> 1572
A8: 三、农业土地开发资金收入 | B8: 434 | C8: 83 | D8: 351 | H8: 434
A9: 四、城市基础设施配套费收入 | B9: 1121 | C9: 157 | D9: 964 | F9: 986 | H9: 135
A10: 五、污水处理费 | B10: 604 | D10: 604 | F10: 604 | H10: 0
A11: 六、国家电影事业发展专项资金安排的支出 | B11: 3 | E11: 3 | H11: 3
A12: 七、大中型水库移民后期扶持基金支出 | B12: 2217 | C12: 48 | E12: 2169 | F12: 844 | H12: 1373
A13: 八、小型水库移民后期扶持基金支出 | B13: 105 | E13: 105 | F13: 58 | H13: 47
A14: 九、专项债券收入安排的支出和还本付息支出 | B14: 88000 | E14: =88000 -> 88000 | F14: =74977+3440-31500 -> 46917 | G14: 18924 | H14: 22159
A15: 十、中小银行专项资金 | B15: 31500 | E15: 31500 | F15: 31500 | H15: 0
A16: 十一、彩票公益金安排的支出 | B16: 567 | E16: 567 | F16: 467 | H16: 100
A17: 十二、抗疫国债安排的支出 | B17: 2981 | C17: 2981 | F17: 1394 | H17: 1587

Sheet 基金支出执行2021年
A1: 2021年渑池县政府性基金支出执行情况表
D2: 单位：万元
A3: 科目名称 | B3: 预算数 | C3: 完成数 | D3: 为预算% | E3: 备注
A4: 合 计 | B4: =SUM(B5:B16) -> 131880 | C4: =SUM(C5:C16) -> 130170 | D4: =SUM(C4/B4*100) -> 98.7
A5: 一、国家电影事业发展专项资金安排的支出 | B5: 18 | D5: 0.0
A6: 二、大中型水库移民后期扶持基金支出 | B6: 1690 | C6: 844 | D6: 49.9
A7: 三、小型水库移民后期扶持基金支出 | B7: 76 | C7: 58 | D7: 76.3
A8: 四、国有土地使用权出让收入安排的支出 | B8: 28890 | C8: 47400 | D8: 164.1
A9: 五、城市基础设施配套费安排的支出 | B9: 450 | C9: 986 | D9: 219.1
A10: 六、污水处理费安排的支出 | B10: 520 | C10: 604 | D10: 116.2
A11: 七、其它车辆通行费安排的支出 | B11: 1400 | D11: 0.0
A12: 八、专项债券收入安排的支出 | B12: 88000 | C12: =74977-31500 -> 43477 | D12: 49.4
A13: 九、中小银行专项资金 | C13: 31500
A14: 十、彩票公益金安排的支出 | B14: 550 | C14: 467 | D14: =SUM(C14/B14*100) -> 84.9
A15: 十一、债务还本付息支出 | B15: 4766 | C15: 3440 | D15: =SUM(C15/B15*100) -> 72.2
A16: 十二、抗疫国债安排的支出 | B16: 5520 | C16: 1394 | D16: =SUM(C16/B16*100) -> 25.3

Sheet 社会保险基金执行2021
A1: 2021年社会保险基金收支执行情况表
A3: 单位：万元
A4: 项 目 | B4: 预算数 | E4: 执行数 | H4: 为预算%
B5: 合计 | C5: 居民基本医疗保险 | D5: 居民社会养老保险基金 | E5: 合计 | F5: 居民基本医疗保险 | G5: 居民社会养老保险基金
A6: 一、收入 | B6: =SUM(C6:D6) -> 33481 | C6: =SUM(C7:C11) -> 23951 | D6: =SUM(D7:D11) -> 9530 | E6: =SUM(F6:G6) -> 33921 | F6: =SUM(F7:F11) -> 24023 | G6: =SUM(G7:G11) -> 9898 | H6: =E6/B6*100 -> 101.3
A7: 其中： 1、保险费收入 | B7: =SUM(C7:D7) -> 9943 | C7: 7736 | D7: 2207 | E7: =SUM(F7:G7) -> 9807 | F7: 7756 | G7: 2051
A8: 2、利息收入 | B8: 259 | C8: 190 | D8: 69 | E8: 765 | F8: 180 | G8: 585
A9: 3、财政补贴收入 | B9: 23175 | C9: 16025 | D9: 7150 | E9: 23112 | F9: 16087 | G9: 7025
A10: 4、转移收入 | B10: 3 | D10: 3 | E10: 4 | G10: 4
A11: 5、委托投资收益 | B11: 101 | D11: 101 | E11: 233 | G11: 233
A12: 二、支出 | B12: 28697 | C12: =SUM(C13:C15) -> 21855 | D12: =SUM(D13:D15) -> 6842 | E12: 31467 | F12: =SUM(F13:F16) -> 24905 | G12: =SUM(G13:G16) -> 6562 | H12: =E12/B12*100 -> 109.7
A13: 其中： 1、社会保险待遇支出 | B13: 28558 | C13: 21855 | D13: 6703 | E13: 25988 | F13: 19432 | G13: 6556
A14: 2、转移支出 | B14: 5 | D14: 5 | E14: 6 | G14: 6
A15: 3、丧葬补助金支出 | B15: 134 | D15: 134
A16: 4、其他支出 | E16: 5473 | F16: 5473

Sheet 2021年债务限额及余额
A1: 渑池县2021年政府债务限额和余额统计表
C3: 单位：万元
A4: 序 号 | B4: 项目名称 | C4: 金 额 | D4: 备 注
A5: 2021年底一般债务余额 | C5: =C6+C9 -> 329185.93
A6: 直接债务 | B6: 小计 | C6: =SUM(C7:C8) -> 328757.50
A7: 1 | B7: 政府一般债券 | C7: 116237.50
A8: 2 | B8: 专项债券 | C8: 212520.00
A9: 或有债务 | B9: 小 计 | C9: =SUM(C10:C12) -> 428.43
A10: 1 | B10: 河南省农村能源二期沼气项目工程 | C10: 428.43
A13: 备注：市局下达的2021年度债务限额为343688万元。

Sheet 2021债券发行和还本付息情况
A1: 2021年债券发行及还本付息情况表
C3: 单位：万元
A4: 序 号 | B4: 项目名称 | C4: 金 额 | D4: 备 注
A5: 1 | B5: 2021年债务发行 | C5: =C6+C7 -> 129500
A6: 2 | B6: 其中：一般债券 | C6: 7300
A7: 3 | B7: 专项债券 | C7: 122200
A8: 4 | B8: 2021年还本付息 | C8: =C9+C10 -> 9275.98
A9: 5 | B9: 其中：还本 | C9: 2019.3 | D9: 一般债券519.3万元，专项债券1500万元
A10: 6 | B10: 付息 | C10: 7256.68 | D10: 一般债券3816.22万元，专项债券3440.46万元
A11: 备注：再融资债券29700万元。

Sheet 2022年债券还本付息预算数
A1: 2022年债券还本付息预算情况表
A2: 单位：万元
A3: 合计 | B3: 2022年应付本息 | F3: 合计 | G3: 2022年预算
B4: 还本 | D4: 付息 | G4: 财力偿还本金 | I4: 财力偿还利息 | K4: 再融资
B5: 一般 | C5: 专项 | D5: 一般 | E5: 专项 | G5: 一般 | H5: 专项 | I5: 一般 | J5: 专项 | K5: 一般 | L5: 专项
A6: =B6+C6+D6+E6 -> 18020.09 | B6: 858.9 | C6: 6210 | D6: 3,930.00 | E6: 7,021.19 | F6: =G6+H6+I6+J6+K6 -> 18020.09 | G6: 58.9 | H6: 110 | I6: 3,930.00 | J6: 7,021.19 | K6: 6900 | L6: 0

Sheet 2022年预计债务限额及新增债券安排情况
A1: 渑池县2022年地方政府债务预计限额及新增债券使用安排情况表
I2: 单位：万元
A3: 序号 | B3: 合计 | C3: 2021年限额 | E3: 合计 | F3: 2022年预计新增限额 | H3: 合计 | I3: 2022年预计总限额
C4: 一般 | D4: 专项 | F4: 一般 | G4: 专项 | I4: 一般 | J4: 专项
A5: 1 | B5: =C5+D5 -> 343688 | C5: 125088 | D5: 218600 | E5: =F5+G5 -> 70000 | F5: 5000 | G5: 65000 | H5: =I5+J5 -> 413688 | I5: =C5+F5 -> 130088 | J5: =D5+G5 -> 283600
A6: 2
A7: 备注：1、一般债券10000万元，主要用于城区道路及配套设施提升改造工程、城道路畅通工程、城至仰韶文化博物馆道路提升工程。 2、专项债券90000万元，主要用于仰韶国家考古遗址公园、集中供暖、涧河生态修复、中医院提升医疗救治能力及棚户区改造项目。

Sheet 2022年一般公共预算收入预算(新)
A1: 2022年渑池县一般公共收入预算表
D2: 单位：万元
A3: 收 入 项 目 | B3: 2021年完成数 | C3: 2022年预算数 | D3: 较上年增减%
A5: 一般公共收入合计 | B5: =SUM(B6+B21) -> 283889 | C5: =SUM(C6+C21) -> 301000 | D5: =C5/B5*100-100 -> 6.0 | E5: =#REF!-B5 -> 
A6: （一）税收收入 | B6: =SUM(B7:B20) -> 166674 | C6: =SUM(C7:C20) -> 177270 | D6: 6.4 | E6: =#REF!-B6 -> 
A7: 1、增值税50% | B7: 73030 | C7: 78000 | D7: 6.8 | E7: =#REF!-B7 ->  | F7: =SUM(B6/B5*100) -> 58.71097506 | I7: 加上年缓交5000，按11%增长
A8: 2、企业所得税 | B8: 14779 | C8: 15666 | D8: 6.0 | E8: =#REF!-B8 ->  | I8: 加上年缓交4200，按9%增长
A9: 3、个人所得税 | B9: 1032 | C9: 1092 | D9: 5.8 | E9: =#REF!-B9 -> 
A10: 4、资源税 | B10: 36389 | C10: 38600 | D10: 6.1 | E10: =#REF!-B10 -> 
A11: 5、城建税 | B11: 7467 | C11: 7920 | D11: 6.1 | E11: =#REF!-B11 -> 
A12: 6、房产税 | B12: 2477 | C12: 2626 | D12: 6.0 | E12: =#REF!-B12 -> 
A13: 7、印花税 | B13: 1551 | C13: 1642 | D13: 5.9 | E13: =#REF!-B13 -> 
A14: 8、城镇土地使用税 | B14: 4432 | C14: 4698 | D14: 6.0 | E14: =#REF!-B14 -> 
A15: 9、土地增值税 | B15: 2016 | C15: 2137 | D15: 6.0 | E15: =#REF!-B15 -> 
A16: 10、环境保护税 | B16: 866 | C16: 918 | D16: 6.0 | E16: =#REF!-B16 ->  | I16: 2017年12月开征
A17: 11、车船税 | B17: 1381 | C17: 1455 | D17: 5.4
A18: 12、耕地占用税 | B18: 3609 | C18: 3826 | D18: 6.0 | E18: =#REF!-B18 -> 
A19: 13、契税 | B19: 15092 | C19: 15990 | D19: 6.0 | E19: =#REF!-B19 -> 
A20: 14、烟叶税 | B20: 2553 | C20: 2700 | D20: 5.8
A21: （二）非税收入 | B21: =SUM(B22:B27) -> 117215 | C21: =SUM(C22:C27) -> 123730 | D21: 5.6 | E21: =#REF!-B21 -> 
A22: 1、专项收入 | B22: 8341 | C22: 8760 | D22: 5.0 | E22: =#REF!-B22 -> 
A23: 2、行政性收费 | B23: 7128 | C23: 7500 | D23: 5.2 | E23: =#REF!-B23 ->  | I23: 上年收入含一次性收入耕地开垦费4000万元
A24: 3、罚没收入 | B24: 3707 | C24: 3900 | D24: 5.2 | E24: =#REF!-B24 -> 
A25: 4、国有资本经营收入 | B25: 56666 | C25: 59800 | D25: 5.5 | E25: =#REF!-B25 ->  | I25: 水资源费700万元变为税
A26: 5、国有资源（资产）有偿使用收入 | B26: 41119 | C26: 43500 | D26: 5.8 | E26: =#REF!-B26 -> 
A27: 6、其他收入 | B27: 254 | C27: 270 | D27: 6.3 | E27: =#REF!-B27 -> 

Sheet 2022年一般公共预算收入预算(县本级)
A1: 2022年渑池县本级一般公共收入预算表
D2: 单位：万元
A3: 收 入 项 目 | B3: 2021年完成数 | C3: 2022年预算数 | D3: 较上年增减%
A5: 一般公共收入合计 | B5: =SUM(B6+B19) -> 159669 | C5: =SUM(C6+C19) -> 168170 | D5: =C5/B5*100-100 -> 5.3 | E5: =#REF!-B5 -> 
A6: （一）税收收入 | B6: =SUM(B7:B18) -> 99422 | C6: =SUM(C7:C18) -> 104773 | D6: 5.4 | E6: =#REF!-B6 -> 
A7: 1、增值税50% | B7: 73031 | C7: 77050 | D7: 5.5 | E7: =#REF!-B7 ->  | F7: =SUM(B6/B5*100) -> 62.26756603 | I7: 加上年缓交5000，按11%增长
A8: 2、企业所得税 | B8: 11239 | C8: 11820 | D8: 5.2 | E8: =#REF!-B8 ->  | I8: 加上年缓交4200，按9%增长
A9: 3、个人所得税 | B9: 806 | C9: 850 | D9: 5.5 | E9: =#REF!-B9 -> 
A10: 4、资源税 | B10: 865 | C10: 910 | D10: 5.2 | E10: =#REF!-B10 -> 
A11: 5、城建税 | B11: 7467 | C11: 7840 | D11: 5.0 | E11: =#REF!-B11 -> 
A12: 6、房产税 | B12: 19 | C12: 20 | D12: 5.3 | E12: =#REF!-B12 -> 
A13: 7、印花税 | B13: 58 | C13: 60 | D13: 3.4 | E13: =#REF!-B13 -> 
A14: 8、城镇土地使用税 | B14: 45 | C14: 48 | D14: 6.7 | E14: =#REF!-B14 -> 
A15: 9、土地增值税 | B15: 2016 | C15: 2117 | D15: 5.0 | E15: =#REF!-B15 -> 
A16: 10、环境保护税 | B16: 865 | C16: 908 | D16: 5.0 | E16: =#REF!-B16 ->  | I16: 2017年12月开征
A17: 11、耕地占用税 | B17: =971+4 -> 975 | C17: 1000 | D17: 2.6 | E17: =#REF!-B17 -> 
A18: 12、契税 | B18: 2036 | C18: 2150 | D18: 5.6 | E18: =#REF!-B18 -> 
A19: （二）非税收入 | B19: =SUM(B20:B24) -> 60247 | C19: =SUM(C20:C24) -> 63397 | D19: 5.2 | E19: =#REF!-B19 -> 
A20: 1、专项收入 | B20: 8334 | C20: 8750 | D20: 5.0 | E20: =#REF!-B20 -> 
A21: 2、行政性收费 | B21: 6860 | C21: 7300 | D21: 6.4 | E21: =#REF!-B21 ->  | I21: 上年收入含一次性收入耕地开垦费4000万元
A22: 3、罚没收入 | B22: 3679 | C22: 3900 | D22: 6.0 | E22: =#REF!-B22 -> 
A23: 4、国有资源（资产）有偿使用收入 | B23: 41120 | C23: 43180 | D23: 5.0 | E23: =#REF!-B23 -> 
A24: 5、其他收入 | B24: 254 | C24: 267 | D24: 5.1 | E24: =#REF!-B24 -> 

Sheet 财力2022表五
A1: 2022年渑池县财力收入测算表
B2: 单位：万元
A3: 项 目 名 称 | B3: 金 额 | C3: 备 注
A4: 一、收入 | B4: 301000
A5: 二、补助收入 | B5: =B6+B7+B8 -> 62227
A6: （一）返还性收入 | B6: -5467
A7: （二）基数补助 | B7: 16186
A8: （三）专项补助 | B8: 51508
A9: 三、上解支出 | B9: =SUM(B10:B28) -> 53019
A10: 其中：出口退税 | B10: 49
A11: 体制结算上解 | B11: 9385
A12: 税务经费 | B12: 841
A13: 地税经费增量上解 | B13: 2234
A14: 增量分成 | B14: 27773
A15: 收入总量分成 | B15: 49269
A16: 收入总量分成补助基数 | B16: -48846
A17: 上划“两税”征管人员经费基数 | B17: 150
A18: 工商质监药监、食品药品上解基数 | B18: 399
A19: 环保局上划 | B19: 2607
A20: 增值税留抵退税 | B20: 4000
A21: 食品药品检测评价、食品安全监督 | B21: 93
A22: 预备役部队建设 | B22: 50
A23: 债券发行手续费 | B23: 37
A24: 公共文化领域财政事权和支出责任划分 | B24: 9
A25: 高铁南站广告上解 | B25: 36
A26: 法检两院上划 | B26: 4271
A27: GF领域财政事权与支出责任划分 | B27: 180
A28: 医疗卫生和社保事权和支出责任划分 | B28: 482
A29: 四、债券还本支出 | B29: 859
A30: 五、上年结余 | B30: 13195
A31: 六、财力合计 | B31: =B4+B5-B9+B30-B29 -> 322544

Sheet 2022年一般公共支出（县本级）
A1: 2022年渑池县本级一般公共支出预算表
A3: 项 目 名 称 | B3: 2021年完成数 | C3: 2022年预算数 | D3: 较上年增减%
A5: 合 计 | B5: =SUM(B6:B25) -> 271138 | C5: =SUM(C6:C25) -> 284250 | D5: =C5/B5*100-100 -> 4.8 | E5: 195461
A6: 一、一般公共服务支出 | B6: =VLOOKUP(A6,'2021年县本级一般公共支出执行表'!A5:C24,3,0) -> 23807 | C6: 24300 | D6: 2.1 | E6: 14815
A7: 二、公共安全支出 | B7: =VLOOKUP(A7,'2021年县本级一般公共支出执行表'!A6:C25,3,0) -> 10990 | C7: 11000 | D7: 0.1 | E7: 37656
A8: 三、教育支出 | B8: =VLOOKUP(A8,'2021年县本级一般公共支出执行表'!A7:C26,3,0) -> 50756 | C8: 51300 | D8: 1.1 | E8: 4485
A9: 四、科学技术支出 | B9: =VLOOKUP(A9,'2021年县本级一般公共支出执行表'!A8:C27,3,0) -> 8528 | C9: 8700 | D9: 2.0 | E9: 4161
A10: 五、文化旅游体育与传媒支出 | B10: =VLOOKUP(A10,'2021年县本级一般公共支出执行表'!A9:C28,3,0) -> 5917 | C10: 6200 | D10: 4.8 | E10: 26497
A11: 六、社会保障和就业支出 | B11: =VLOOKUP(A11,'2021年县本级一般公共支出执行表'!A10:C29,3,0) -> 34864 | C11: 36700 | D11: 5.3 | E11: 30422
A12: 七、卫生健康支出 | B12: =VLOOKUP(A12,'2021年县本级一般公共支出执行表'!A11:C30,3,0) -> 35235 | C12: 36800 | D12: 4.4 | E12: 5334
A13: 八、节能环保支出 | B13: =VLOOKUP(A13,'2021年县本级一般公共支出执行表'!A12:C31,3,0) -> 9518 | C13: 9900 | D13: 4.0 | E13: 11120
A14: 九、城乡社区支出 | B14: =VLOOKUP(A14,'2021年县本级一般公共支出执行表'!A13:C32,3,0) -> 29829 | C14: 31000 | D14: 3.9 | E14: 6712
A15: 十、农林水支出 | B15: =VLOOKUP(A15,'2021年县本级一般公共支出执行表'!A14:C33,3,0) -> 30046 | C15: 31600 | D15: 5.2 | E15: 24337
A16: 十一、交通运输支出 | B16: =VLOOKUP(A16,'2021年县本级一般公共支出执行表'!A15:C34,3,0) -> 8064 | C16: 8400 | D16: 4.2 | E16: 2674
A17: 十二、资源勘探工业信息等支出 | B17: =VLOOKUP(A17,'2021年县本级一般公共支出执行表'!A16:C35,3,0) -> 1233 | C17: 1250 | D17: 1.4 | E17: 2231
A18: 十三、商业服务业等支出 | B18: =VLOOKUP(A18,'2021年县本级一般公共支出执行表'!A17:C36,3,0) -> 1137 | C18: 1150 | D18: 1.1 | E18: 877
A19: 十四、自然资源海洋气象等支出 | B19: =VLOOKUP(A19,'2021年县本级一般公共支出执行表'!A18:C37,3,0) -> 5887 | C19: 6100 | D19: 3.6 | E19: 9478
A20: 十五、住房保障支出 | B20: =VLOOKUP(A20,'2021年县本级一般公共支出执行表'!A19:C38,3,0) -> 6029 | C20: 6200 | D20: 2.8
A21: 十六、粮油物资储备支出 | B21: =VLOOKUP(A21,'2021年县本级一般公共支出执行表'!A20:C39,3,0) -> 1802 | C21: 1850 | D21: 2.7
A22: 十七、灾害防治及应急管理支出 | B22: =VLOOKUP(A22,'2021年县本级一般公共支出执行表'!A21:C40,3,0) -> 3104 | C22: 3200 | D22: 3.1 | E22: 575
A23: 十八、债务还本付息支出 | B23: 3816 | C23: 4000 | D23: 4.8
A24: 十九、其它支出 | B24: 576 | C24: 600 | D24: 4.2 | E24: 2086
A25: 二十、预备费 | C25: 4000

Sheet 2022年县本级一般公共预算支出明细表
A2: 2022年渑池县本级一般公共预算支出明细表
D3: 单位：万元
A4: 项 目 | B4: 基本财力安排 | C4: 政府一般债券本级使用 | D4: 合计
A6: 支出合计 | B6: =B7+B34+B37+B40+B52+B63+B74+B81+B103+B117+B133+B140+B149+B156+B164+B168+B172+B176+B181+B189+B190+B193+B195 -> 284,250 | D6: =B6 -> 284,250
A7: 一般公共服务 | B7: =SUM(B8:B33) -> 24,300 | C7: 0 | D7: =B7 -> 24,300
A8: 人大事务 | B8: 574 | D8: =B8 -> 574
A9: 政协事务 | B9: 432 | D9: 432
A10: 政府办公厅(室)及相关机构事务 | B10: =8930-1705 -> 7,225 | D10: 7,225
A11: 发展与改革事务 | B11: 979 | D11: 979
A12: 统计信息事务 | B12: 617 | D12: 617
A13: 财政事务 | B13: 2,530 | D13: 2,530
A14: 税收事务 | D14: 0
A15: 审计事务 | B15: 517 | D15: 517
A16: 海关事务 | D16: 0
A17: 纪检监察事务 | B17: 2,352 | D17: 2,352
A18: 商贸事务 | B18: 767 | D18: 767
A19: 知识产权事务 | D19: 0
A20: 民族事务 | B20: 15 | D20: 15
A21: 港澳台事务 | D21: 0
A22: 档案事务 | B22: 95 | D22: 95
A23: 民主党派及工商联事务 | B23: 101 | D23: 101
A24: 群众团体事务 | B24: 597 | D24: 597
A25: 党委办公厅（室）及相关机构事务 | B25: 3,357 | D25: 3,357
A26: 组织事务 | B26: 779 | D26: 779
A27: 宣传事务 | B27: 716 | D27: 716
A28: 统战事务 | B28: 491 | D28: 491
A29: 对外联络事务 | D29: 0
A30: 其他共产党事务支出 | B30: 10 | D30: 10
A31: 网信事务 | D31: 0
A32: 市场监督管理事务 | B32: 2,146 | D32: 2,146
A33: 其他一般公共服务支出 | D33: 0
A34: 外交支出 | B34: =SUM(B35:B36) -> 0 | C34: 0 | D34: 0
A35: 对外合作与交流 | D35: 0
A36: 其他外交支出 | D36: 0
A37: 国防支出 | B37: =SUM(B38:B39) -> 0 | C37: 0 | D37: 0
A38: 国防动员 | D38: 0
A39: 其他国防支出 | D39: 0
A40: 公共安全支出 | B40: =SUM(B41:B51) -> 11,000 | C40: 0 | D40: 11,000
A41: 武装警察部队 | D41: 0
A42: 公安 | B42: =8088+2030 -> 10,118 | D42: 10,118
A43: 国家安全 | D43: 0
A44: 检察 | D44: 0
A45: 法院 | D45: 0
A46: 司法 | B46: 802 | D46: 802
A47: 监狱 | D47: 0
A48: 强制隔离戒毒 | D48: 0
A49: 国家保密 | D49: 0
A50: 缉私警察 | D50: 0
A51: 其他公共安全支出 | B51: 80 | D51: 80
A52: 教育支出 | B52: =SUM(B53:B62) -> 51,300 | C52: 0 | D52: 51,300
A53: 教育管理事务 | B53: 1,621 | D53: 1,621
A54: 普通教育 | B54: =52634-9528 -> 43,106 | D54: 43,106
A55: 职业教育 | B55: 750 | D55: 750
A56: 成人教育 | D56: 0
A57: 广播电视教育 | D57: 0
A58: 留学教育 | D58: 0
A59: 特殊教育 | B59: 223 | D59: 223
A60: 进修及培训 | B60: 200 | D60: 200
A61: 教育费附加安排的支出 | B61: 5,380 | D61: 5,380
A62: 其他教育支出 | B62: 20 | D62: 20
A63: 科学技术支出 | B63: =SUM(B64:B73) -> 8,700 | C63: 0 | D63: 8,700
A64: 科学技术管理事务 | B64: 100 | D64: 100
A65: 基础研究 | B65: 245 | D65: 245
A66: 应用研究 | B66: 1,295 | D66: 1,295
A67: 技术研究与开发 | B67: =1970+2474 -> 4,444 | D67: 4,444
A68: 科技条件与服务 | B68: 1,000 | D68: 1,000
A69: 社会科学 | D69: 0
A70: 科学技术普及 | B70: 114 | D70: 114
A71: 科技交流与合作 | D71: 0
A72: 科技重大项目 | D72: =B72 -> 0
A73: 其他科学技术支出 | B73: 1,502 | D73: 1,502
A74: 文化旅游体育与传媒支出 | B74: =SUM(B75:B80) -> 6,200 | C74: 0 | D74: 6,200
A75: 文化和旅游 | B75: 2,278 | D75: 2,278
A76: 文物 | B76: =2700-365 -> 2,335 | D76: 2,335
A77: 体育 | B77: 10 | D77: 10
A78: 新闻出版电影 | D78: 0
A79: 广播电视 | B79: 1,327 | D79: 1,327
A80: 其他文化旅游体育与传媒支出 | B80: 250 | D80: 250
A81: 社会保障和就业支出 | B81: =SUM(B82:B102) -> 36,700 | C81: 0 | D81: 36,700
A82: 人力资源和社会保障管理事务 | B82: 1,760 | D82: 1,760
A83: 民政管理事务 | B83: 960 | D83: 960
A84: 补充全国社会保障基金 | D84: 0
A85: 行政事业单位养老支出 | B85: =20850-3676 -> 17,174 | D85: 17,174
A86: 企业改革补助 | D86: 0
A87: 就业补助 | B87: 649 | D87: 649
A88: 抚恤 | B88: 3,502 | D88: 3,502
A89: 退役安置 | B89: 420 | D89: 420
A90: 社会福利 | B90: 698 | D90: 698
A91: 残疾人事业 | B91: 1,028 | D91: 1,028
A92: 红十字事业 | D92: 0
A93: 最低生活保障 | B93: 3,700 | D93: 3,700
A94: 临时救助 | B94: 478 | D94: 478
A95: 特困人员救助供养 | B95: 620 | D95: 620
A96: 补充道路交通事故社会救助基金 | D96: 0
A97: 其他生活救助 | B97: 37 | D97: 37
A98: 财政对基本养老保险基金的补助 | B98: 5,250 | D98: 5,250
A99: 财政对其他社会保险基金的补助 | D99: 0
A100: 退役军人管理事务 | B100: 326 | D100: 326
A101: 财政代缴社会保险费支出 | B101: 98 | D101: 98
A102: 其他社会保障和就业支出 | D102: 0
A103: 卫生健康支出 | B103: =SUM(B104:B116) -> 36,800 | C103: 0 | D103: 36,800
A104: 卫生健康管理事务 | B104: 715 | D104: 715
A105: 公立医院 | B105: 1,900 | D105: 1,900
A106: 基层医疗卫生机构 | B106: 2,310 | D106: 2,310
A107: 公共卫生 | B107: 7,328 | D107: 7,328
A108: 中医药 | B108: 115 | D108: 115
A109: 计划生育事务 | B109: 553 | D109: 553
A110: 行政事业单位医疗 | B110: 4,380 | D110: 4,380
A111: 财政对基本医疗保险基金的补助 | B111: 14,800 | D111: 14,800
A112: 医疗救助 | B112: 800 | D112: 800
A113: 优抚对象医疗 | B113: 74 | D113: 74
A114: 医疗保障管理事务 | B114: 489 | D114: 489
A115: 老龄卫生健康事务 | D115: 0
A116: 其他卫生健康支出 | B116: 3,336 | D116: 3,336
A117: 节能环保支出 | B117: =SUM(B118:B132) -> 9,900 | C117: 0 | D117: 9,900
A118: 环境保护管理事务 | D118: 0
A119: 环境监测与监察 | B119: 100 | D119: 100
A120: 污染防治 | B120: =8000-1399 -> 6,601 | D120: 6,601
A121: 自然生态保护 | B121: 210 | D121: 210
A122: 天然林保护 | B122: 89 | D122: 89
A123: 退耕还林还草 | D123: 0
A124: 风沙荒漠治理 | D124: 0
A125: 退牧还草 | D125: 0
A126: 已垦草原退耕还草 | D126: 0
A127: 能源节约利用 | B127: 2,000 | D127: 2,000
A128: 污染减排 | B128: 900 | D128: 900
A129: 可再生能源 | D129: 0
A130: 循环经济 | D130: 0
A131: 能源管理事务 | D131: 0
A132: 其他节能环保支出 | D132: 0
A133: 城乡社区支出 | B133: =SUM(B134:B139) -> 31,000 | C133: 0 | D133: 31,000
A134: 城乡社区管理事务 | B134: 10,586 | D134: 10,586
A135: 城乡社区规划与管理 | B135: 120 | D135: 120
A136: 城乡社区公共设施 | B136: =11500-1706 -> 9,794 | D136: =B136 -> 9,794
A137: 城乡社区环境卫生 | B137: 5,500 | D137: 5,500
A138: 建设市场管理与监督 | D138: 0
A139: 其他城乡社区支出 | B139: 5,000 | D139: 5,000
A140: 农林水支出 | B140: =SUM(B141:B148) -> 31,600 | C140: 0 | D140: 31,600
A141: 农业农村 | B141: =13999-3969 -> 10,030 | D141: 10,030
A142: 林业和草原 | B142: =6199-1000 -> 5,199 | D142: 5,199
A143: 水利 | B143: 5,815 | D143: 5,815
A144: 巩固脱贫衔接乡村振兴 | B144: 5,501 | D144: 5,501
A145: 农村综合改革 | B145: 3,720 | D145: 3,720
A146: 普惠金融发展支出 | B146: 1,335 | D146: 1,335
A147: 目标价格补贴 | D147: 0
A148: 其他农林水支出 | D148: 0
A149: 交通运输支出 | B149: =SUM(B150:B155) -> 8,400 | C149: 0 | D149: 8,400
A150: 公路水路运输 | B150: =7863-413 -> 7,450 | D150: 7,450
A151: 铁路运输 | D151: 0
A152: 民用航空运输 | D152: 0
A153: 邮政业支出 | D153: 0
A154: 车辆购置税支出 | B154: 100 | D154: 100
A155: 其他交通运输支出 | B155: 850 | D155: 850
A156: 资源勘探工业信息等支出 | B156: =SUM(B157:B163) -> 1,250 | C156: 0 | D156: 1,250
A157: 资源勘探开发 | D157: 0
A158: 制造业 | D158: 0
A159: 建筑业 | D159: 0
A160: 工业和信息产业监管 | B160: 423 | D160: 423
A161: 国有资产监管 | B161: 325 | D161: 325
A162: 支持中小企业发展和管理支出 | B162: =580-78 -> 502 | D162: 502
A163: 其他资源勘探工业信息等支出 | D163: 0
A164: 商业服务业等支出 | B164: =SUM(B165:B167) -> 1,150 | C164: 0 | D164: 1,150
A165: 商业流通事务 | B165: =754+360 -> 1,114 | D165: 1,114
A166: 涉外发展服务支出 | B166: 5 | D166: 5
A167: 其他商业服务业等支出 | B167: 31 | D167: 31
A168: 自然资源海洋气象等支出 | B168: =SUM(B169:B171) -> 6,100 | C168: 0 | D168: 6,100
A169: 自然资源事务 | B169: =4765+1335 -> 6,100 | D169: 6,100
A170: 气象事务 | D170: 0
A171: 其他自然资源海洋气象等支出 | D171: 0
A172: 住房保障支出 | B172: =SUM(B173:B175) -> 6,200 | C172: 0 | D172: 6,200
A173: 保障性安居工程支出 | B173: 377 | D173: 377
A174: 住房改革支出 | B174: =6650-827 -> 5,823 | D174: 5,823
A175: 城乡社区住宅 | D175: 0
A176: 粮油物资储备支出 | B176: =SUM(B177:B180) -> 1,850 | C176: 0 | D176: 1,850
A177: 粮油物资事务 | B177: 785 | D177: 785
A178: 能源储备 | D178: 0
A179: 粮油储备 | B179: =1005+45 -> 1,050 | D179: 1,050
A180: 重要商品储备 | B180: 15 | D180: 15
A181: 灾害防治及应急管理支出 | B181: =SUM(B182:B188) -> 3,200 | C181: 0 | D181: 3,200
A182: 应急管理事务 | B182: 1,278 | D182: 1,278
A183: 消防救援事务 | B183: 1,170 | D183: 1,170
A184: 矿山安全 | B184: 405 | D184: 405
A185: 地震事务 | D185: 0
A186: 自然灾害防治 | B186: =295+52 -> 347 | D186: 347
A187: 自然灾害救灾及恢复重建支出 | D187: 0
A188: 其他灾害防治及应急管理支出 | D188: 0
A189: 预备费 | B189: 4,000 | D189: 4,000
A190: 其他支出 | B190: =SUM(B191:B192) -> 600 | C190: 0 | D190: 600
A191: 年初预留 | D191: 0
A192: 其他支出 | B192: 600 | D192: 600
A193: 债务付息支出 | B193: =SUM(B194) -> 4,000 | C193: 0 | D193: 4,000
A194: 地方政府一般债务付息支出 | B194: =3930+70 -> 4,000 | D194: 4,000
A195: 债务发行费用支出 | D195: 0

Sheet 基金收入2022年
A1: 2022年渑池县政府性基金收入预算表
D2: 单位:万元
A3: 科目名称 | B3: 2021年完成数 | C3: 2022年预算数 | D3: 较上年增减%
A4: 合 计 | B4: =SUM(B5:B9) -> 80409 | C4: =SUM(C5:C9) -> 48480 | D4: =C4/B4*100-100 -> -39.7
A5: 一、国有土地使用权出让收入 | B5: =基金收入2021年执行情况!C5 -> 77041 | C5: 45000 | D5: =C5/B5*100-100 -> -41.6
A6: 二、国有土地收益基金收入 | B6: =基金收入2021年执行情况!C6 -> 1449 | C6: 1500 | D6: 3.5
A7: 三、农业土地开发资金收入 | B7: =基金收入2021年执行情况!C7 -> 351 | C7: 360 | D7: 2.6
A8: 四、城市基础设施配套费收入 | B8: =基金收入2021年执行情况!C8 -> 964 | C8: 970 | D8: 0.6
A9: 五、污水处理费收入 | B9: =基金收入2021年执行情况!C9 -> 604 | C9: 650 | D9: 7.6

Sheet 基金支出2022年
A1: 2022年渑池县政府性基金支出预算表
D2: 单位：万元
A3: 科目名称 | B3: 2021年完成数 | C3: 2022年预算数 | D3: 较上年 增减%
A4: 合 计 | B4: 130170 | C4: =SUM(C5:C18) -> 148543 | D4: =C4/B4*100 -> 114.1
A5: 一、大中型水库移民后期扶持基金支出 | B5: 807 | C5: 2855 | D5: =C5/B5*100 -> 353.8
A6: 二、小型水库移民后期扶持基金支出 | B6: 58 | C6: 47 | D6: 81.0
A7: 三、大中型水库库区基金安排的支出 | B7: 37 | C7: 54 | D7: 145.9
A8: 四、国有土地使用权出让收入安排的支出 | B8: 47400 | C8: 34178 | D8: 72.1
A9: 五、城市基础设施配套费安排的支出 | B9: 986 | C9: 1000 | D9: 101.4
A10: 六、污水处理费安排的支出 | B10: 604 | C10: 650 | D10: 107.6
A11: 七、棚户区改造专项债券收入安排的支出 | B11: 39106 | C11: 72071 | D11: 184.3
A12: 八、其他政府性基金及对应专项债务收入安排的支出 | B12: 35871 | C12: 19976 | D12: 55.7
A13: 九、彩票公益金安排的支出 | B13: 467 | C13: 687 | D13: 147.1
A14: 十、债务还本付息支出 | B14: 3440 | C14: 13429 | D14: 390.4
A15: 十一、抗疫国债安排的支出 | B15: 1394 | C15: 1587 | D15: 113.8
A16: 十二、国有土地收益基金安排的支出 | C16: 1572
A17: 十三、农业土地开发资金安排的支出 | B17: 0 | C17: 434 | D17: 0.0
A18: 十四、国家电影事业发展专项资金安排的支出 | B18: 0 | C18: 3 | D18: 0.0

Sheet 社会保险基金收入表
A1: 2022年社会保险基金预算收支表
G3: 单位：万元
A4: 项 目 | B4: 合计 | C4: 城镇职工基本医疗保险基金 | D4: 居民基本医疗保险 | E4: 工伤保险基金 | F4: 居民社会养老保险基金 | G4: 机关事业养老保险基金
A5: 一、收入 | B5: =SUM(C5:G5) -> 76260 | C5: =SUM(C6:C10) -> 13428 | D5: 24300 | E5: 950 | F5: 10370 | G5: 27212
A6: 其中： 1、保险费收入 | B6: =SUM(C6:G6) -> 41837 | C6: 13200 | D6: 8576 | E6: 950 | F6: 2211 | G6: 16900
A7: 2、利息收入 | B7: =SUM(C7:G7) -> 704 | C7: 210 | D7: 180 | F7: 302 | G7: 12
A8: 3、财政补贴收入 | B8: 32872 | D8: 15544 | F8: 7328 | G8: 10000
A9: 4、转移收入 | B9: 324 | C9: 18 | F9: 6 | G9: 300
A10: 5、委托投资收益 | B10: 523 | F10: 523
A11: 二、支出 | B11: =SUM(B12:B14) -> 70587 | C11: 12323 | D11: 23291 | E11: 900 | F11: 7111 | G11: 26962
A12: 其中：1、社会保险待遇支出 | B12: 70360 | C12: 12300 | D12: 23291 | E12: 900 | F12: 6907 | G12: 26962
A13: 2、转移支出 | B13: 31 | C13: 23 | F13: 8
A14: 3、丧葬补助金支出 | B14: 196 | F14: 196
A15: 三、 | B15: =B5-B11 -> 5673 | C15: =C5-C11 -> 1105 | D15: 1009 | E15: 50 | F15: 3259 | G15: 250

Sheet 2022年渑池县本级一般公共预算三公经费支出预算表
A1: 2022年渑池县本级一般公共预算“三公”经费支出预算表
B2: 单位：万元
A3: 项 目 | B3: 2022年预算数
A4: 一、因公出国境费用
A5: 二、公务接待费 | B5: 1068
A6: 三、公务用车购置及运行费 | B6: =SUM(B7:B8) -> 1579
A7: 其中：公务用车运行维护费 | B7: 1454
A8: 公务用车购置费 | B8: 125
A10: 合 计 | B10: =B5+B6 -> 2647
A11: 备注：按照有关规定，“三公”经费包括因公出国（境）费、公务接待费、公务用车购置及运行费。（1）因公出国（境）费指单位工作人员公务出国（境）的住宿费、差旅费、伙食补助费、杂费、培训费等支出。（2）公务接待费指单位按照规定开支的各类公务接待（含外宾接待）支出。（3）公务用车购置及运行费指单位公务用车购置费及租用费、燃料费、维修费、过路过桥费、保险费、安全奖励费用等支出，公务用车指用干履行公务的机动车辆，包括领导干部专车、一般公务用车和执法执勤用车。

Sheet Sheet2
